bitfinex/quotes_ETHUSD_20220213
["timestamp","ask_amount","ask_price","bid_price","bid_amount"]
[1644781577728,1.38580126,2844.5,2843.8,0.92629028]
[1644781577930,1.38580126,2844.4,2843.8,1.80550028]
[1644781578129,1.38580126,2844.3,2843.8,2.68472028]
[1644781578329,0.01145396,2844.6,2843.8,2.68472028]
[1644781578586,1.38657966,2844.5,2843.8,2.68472028]
[1644781578776,1.39038503,2844.5,2843.8,2.68472028]
[1644781578976,4.63109898,2844.4,2843.8,1.75843]
[1644781579277,1.38657966,2844.3,2843.6,0.0102816]
[1644781579476,0.1758,2844.2,2843.6,0.0102816]
[1644781579677,1.38657966,2844.1,2843.6,0.0102816]
[1644781580077,1.38657966,2844.0,2843.4,0.1758]
[1644781580279,1.38657966,2843.9,2843.6,1.89683989]
[1644781580478,0.17960537,2844.4,2843.7,0.87927]
[1644781580679,1.37540465,2844.3,2843.7,0.87927]
[1644781582080,1.37540465,2844.3,2844.1,1.14806402]
[1644781582528,4.11959277,2844.7,2844.1,1.14806402]
[1644781582529,1.37540465,2844.2,2844.1,1.14806402]
[1644781582729,1.37540465,2844.5,2844.1,1.14806402]
[1644781583033,1.37540465,2844.4,2844.1,1.09806402]
[1644781583229,1.37540465,2844.3,2844.1,1.09806402]
[1644781583530,0.19012907,2844.6,2844.1,1.09806402]
[1644781583531,1.37540465,2844.2,2844.1,1.09806402]
[1644781583733,0.17940537,2844.6,2844.1,1.52006402]
[1644781583734,1.37540465,2844.5,2844.1,1.52006402]
[1644781584028,1.37540465,2844.4,2844.1,1.52006402]
[1644781584230,1.37540465,2844.3,2844.2,0.17209129]
[1644781584437,1.37540465,2844.3,2844.2,1.22663129]
[1644781584931,0.3266427,2844.3,2844.2,1.05454]
[1644781586084,0.3266427,2844.3,2844.1,22.48906472]
[1644781586281,0.01072437,2844.6,2844.1,2.32906472]
[1644781586476,0.01072437,2844.6,2844.1,2.90807472]
[1644781586676,0.01072437,2844.6,2844.2,0.87894]
[1644781587078,0.01072437,2844.6,2844.2,21.33894]
[1644781587280,0.00380537,2844.8,2844.3,21.33898]
[1644781587478,0.66352583,2845.0,2844.3,23.09679]
[1644781587479,0.01077348,2844.6,2844.3,23.09679]
[1644781587678,0.01077348,2844.6,2844.4,0.3]
[1644781587878,0.01077348,2844.6,2844.5,21.0576]
[1644781588280,0.01077348,2844.6,2844.5,21.22969129]
[1644781588479,0.00380537,2845.0,2844.5,21.22969129]
[1644781588679,0.00380537,2845.3,2844.7,20.46]
[1644781588884,0.00380537,2845.3,2844.8,21.0576]
[1644781589081,0.00380537,2845.3,2844.8,21.3576]
[1644781589378,0.04308479,2845.4,2844.8,21.3576]
[1644781589579,0.6673312,2845.5,2844.8,21.3576]
[1644781589845,0.66352583,2845.4,2845.3,2.64480429]
[1644781590242,0.66352583,2845.5,2845.3,23.10480429]
[1644781590440,0.66352583,2845.5,2845.3,3.15080429]
[1644781590838,0.58822655,2845.6,2845.3,3.15080429]
[1644781590839,0.66352583,2845.4,2845.3,3.15080429]
[1644781591241,0.67430341,2845.5,2845.3,3.15080429]
[1644781591839,0.01077758,2845.5,2845.3,3.15080429]
[1644781592041,0.66352583,2845.5,2845.3,3.15080429]
[1644781592237,0.67430341,2845.5,2845.3,3.15080429]
[1644781592839,0.67430341,2845.5,2845.3,0.88746429]
[1644781592840,0.66352583,2845.4,2845.3,0.88746429]
[1644781593038,0.01077758,2845.5,2844.8,0.1756]
[1644781593039,3.27927016,2845.5,2844.8,0.1756]
[1644781593239,0.66136691,2845.2,2844.3,1.93344]
[1644781593440,0.66517228,2845.1,2844.3,1.75784]
[1644781593684,0.66517228,2845.1,2844.4,2.2638]
[1644781593685,0.66136691,2845.1,2844.4,2.2638]
[1644781593884,0.66517228,2845.0,2844.4,2.2638]
[1644781594092,0.66136691,2844.9,2844.5,1.01249052]
[1644781594284,0.83696691,2845.0,2844.5,1.01249052]
[1644781594484,0.66136691,2845.0,2844.4,2.63678]
[1644781594785,0.01076986,2844.8,2844.4,2.63678]
[1644781594985,0.01076986,2844.8,2844.1,1.75796]
[1644781595185,0.01076986,2844.8,2843.9,3.14314]
[1644781595186,0.01457523,2844.8,2843.9,3.14314]
[1644781595387,0.83696691,2844.7,2843.9,0.506]
[1644781595586,0.83696691,2844.7,2844.2,1.13448629]
[1644781595587,0.66136691,2844.6,2844.2,1.13448629]
[1644781595786,0.00380537,2844.6,2844.2,1.13448629]
[1644781595985,0.01076967,2844.6,2844.2,1.13448629]
[1644781596787,0.17940537,2844.7,2844.3,0.87902]
[1644781596987,0.66136691,2844.8,2844.3,1.38502]
[1644781597187,0.01046147,2844.6,2844.3,1.38502]
[1644781597436,0.01046147,2844.6,2844.3,2.26402]
[1644781597830,0.01046147,2844.6,2844.3,3.14304]
[1644781598031,0.00380537,2844.9,2844.3,23.60304]
[1644781598232,0.00380537,2844.9,2844.7,1.12411387]
[1644781598432,0.66136691,2844.9,2844.7,1.12411387]
[1644781598932,0.66136691,2845.1,2844.7,1.12411387]
[1644781599136,0.17940537,2845.2,2844.7,1.12411387]
[1644781599137,0.66136691,2845.0,2844.7,1.12411387]
[1644781599333,0.66136691,2845.1,2844.7,1.12411387]
[1644781599533,0.01046208,2845.0,2844.7,1.12411387]
[1644781600133,0.01046208,2845.0,2844.7,2.00301387]
[1644781600532,0.66517228,2845.1,2844.8,0.506]
[1644781600733,0.01029565,2845.0,2844.8,0.506]
[1644781601689,0.66136691,2845.1,2844.8,0.506]
[1644781601883,0.01030578,2845.0,2844.8,0.506]
[1644781602284,0.01030578,2845.0,2844.9,0.87886]
[1644781602483,0.01030578,2845.0,2844.9,1.38486]
[1644781602984,0.66517228,2845.2,2844.9,1.38486]
[1644781603183,0.86396068,2845.5,2844.9,1.38486]
[1644781603184,0.01030573,2845.1,2844.9,1.38486]
[1644781603586,0.01030573,2845.1,2844.9,21.84486]
[1644781603786,0.01030573,2845.1,2845.0,0.17209129]
[1644781603985,0.00380537,2845.4,2845.0,27.46809129]
[1644781604190,1.21031266,2845.6,2845.2,0.87864]
[1644781604386,0.58645432,2845.6,2845.3,1.42999257]
[1644781604829,1.30973337,2845.5,2845.3,1.42999257]
[1644781605231,1.30973337,2845.5,2845.3,3.18726257]
[1644781605435,1.3200679,2845.5,2845.3,3.18726257]
[1644781605633,1.30973337,2845.4,2845.3,3.18726257]
[1644781606231,1.30973337,2845.4,2845.3,22.05110335]
[1644781606631,1.32006795,2845.5,2845.3,22.05110335]
[1644781606835,1.30973337,2845.4,2845.3,22.05110335]
[1644781607031,1.30973337,2845.4,2845.3,1.59110335]
[1644781607533,1.30973337,2845.4,2845.3,2.46974335]
[1644781607734,1.30973337,2845.4,2845.3,0.506]
[1644781608683,1.30973337,2845.4,2845.1,0.85277975]
[1644781608882,1.30973337,2845.3,2845.1,0.85277975]
[1644781609086,1.30973337,2845.2,2845.1,0.85277975]
[1644781613535,1.2444445,2845.2,2845.1,0.85277975]
[1644781617785,1.2444445,2845.2,2845.1,21.31277975]
[1644781618186,1.2444445,2845.2,2845.1,21.81877975]
[1644781618984,0.01033061,2845.3,2845.2,4.65]
[1644781619284,0.01033061,2845.3,2845.2,27.09454]
[1644781619485,0.01033061,2845.3,2845.2,27.26663129]
[1644781619686,0.54894575,2845.6,2845.2,29.02380129]
[1644781619938,0.54514038,2845.6,2845.4,21.33859]
[1644781620135,0.54514038,2845.6,2845.5,20.966]
[1644781620335,0.54514038,2845.6,2845.5,1.55671129]
[1644781620536,0.49514038,2845.6,2845.5,1.55671129]
[1644781622137,0.49514038,2845.6,2845.5,22.01671129]
[1644781622338,0.01078716,2845.7,2845.6,25.11]
[1644781622544,0.01078716,2845.7,2845.6,25.616]
[1644781622740,0.01078716,2845.7,2845.6,5.756]
[1644781622942,0.01078716,2845.7,2845.6,26.08809129]
[1644781623141,0.01078716,2845.7,2845.6,26.38809129]
[1644781623340,0.00380537,2846.2,2845.8,0.87857]
[1644781623595,0.00380537,2846.2,2846.1,1.13841822]
[1644781623596,0.04349226,2846.2,2846.1,1.13841822]
[1644781623786,0.04729763,2846.2,2846.1,1.13841822]
[1644781623986,0.04349226,2846.2,2846.1,1.13841822]
[1644781624385,0.66136691,2846.3,2846.1,1.13841822]
[1644781624585,0.66136691,2846.3,2845.6,0.67809129]
[1644781624792,0.00380537,2846.2,2845.6,0.67809129]
[1644781624991,0.66517228,2846.2,2845.6,0.67809129]
[1644781625291,0.66517228,2846.2,2845.6,1.55673129]
[1644781625490,0.66517228,2846.2,2845.7,1.08987215]
[1644781625788,0.84077228,2846.2,2845.6,1.38464]
[1644781625990,0.67224133,2846.0,2845.4,1.75716]
[1644781626191,0.67224133,2846.0,2845.2,1.34055828]
[1644781626192,0.6760467,2846.0,2845.2,1.34055828]
[1644781626488,0.6760467,2846.0,2845.2,0.506]
[1644781626688,0.01467979,2846.0,2845.2,1.38476]
[1644781626888,0.66517228,2846.0,2845.4,0.93830172]
[1644781627088,0.01076605,2845.7,2845.2,1.38476]
[1644781627334,0.01076605,2845.7,2844.9,1.93312]
[1644781627535,0.1756,2845.6,2844.9,1.93312]
[1644781627733,0.17940537,2845.6,2844.9,1.93312]
[1644781627940,0.17940537,2845.6,2844.9,22.39312]
[1644781628135,0.17940537,2845.6,2844.9,22.89912]
[1644781628333,0.01076643,2845.4,2844.9,22.89912]
[1644781628535,0.01076643,2845.4,2845.0,0.87877]
[1644781628733,0.01076643,2845.4,2845.1,2.63601]
[1644781629234,0.66517228,2845.8,2845.1,2.63601]
[1644781629437,0.01076643,2845.4,2845.2,1.95117787]
[1644781629635,0.01076643,2845.4,2845.2,4.58703787]
[1644781630441,0.00380537,2845.6,2845.2,4.58703787]
[1644781630638,0.0107737,2845.4,2845.3,1.75729]
[1644781631684,0.00380537,2845.7,2845.3,1.75729]
[1644781631984,0.01077365,2845.5,2845.3,1.75729]
[1644781632185,0.01077365,2845.5,2845.3,0.87865]
[1644781632384,0.01077365,2845.5,2845.3,0.87873]
[1644781632585,0.84774056,2845.5,2845.1,1.75735]
[1644781633087,0.84774056,2845.5,2844.6,20.46]
[1644781633088,0.8477405,2845.5,2844.6,20.46]
[1644781633386,0.8477405,2845.5,2845.0,0.96932084]
[1644781633587,0.6721405,2845.5,2845.0,0.96932084]
[1644781633985,0.66136691,2845.5,2844.7,1.75759]
[1644781634386,0.01042608,2845.4,2844.7,1.75759]
[1644781634585,0.01042608,2845.4,2844.7,0.87885]
[1644781635236,0.91136691,2845.5,2844.7,1.77969454]
[1644781635436,0.01042627,2845.2,2844.7,2.65853454]
[1644781635639,0.01042627,2845.2,2844.8,0.87882]
[1644781636037,0.01042627,2845.2,2844.8,1.75759]
[1644781636238,0.01042627,2845.2,2844.8,0.87877]
[1644781636438,0.66136691,2845.5,2844.8,0.87877]
[1644781636640,0.66136691,2845.6,2844.8,1.75754]
[1644781636839,0.01042632,2845.1,2844.8,1.75754]
[1644781637640,0.1756,2845.5,2844.8,1.75754]
[1644781637841,0.1756,2845.5,2845.2,0.85018769]
[1644781638042,0.0103158,2845.1,2844.9,0.87875]
[1644781638884,0.1756,2845.5,2845.0,0.87879]
[1644781639086,0.01031575,2845.1,2845.0,2.03503902]
[1644781639286,0.01031575,2845.1,2845.0,2.91382902]
[1644781639485,1.15231738,2845.1,2845.0,2.91382902]
[1644781639984,1.14200163,2845.1,2845.0,2.91382902]
[1644781640387,0.01031571,2845.2,2845.0,1.75758]
[1644781640585,1.14200163,2845.1,2845.0,1.75758]
[1644781641587,1.14200163,2845.1,2845.0,2.10324912]
[1644781641888,1.14200163,2845.1,2845.0,1.75758]
[1644781645441,1.14200163,2845.1,2845.0,2.10358591]
[1644781646288,0.1756,2845.5,2845.1,26.86729]
[1644781646289,0.01033346,2845.2,2845.1,26.86729]
[1644781646586,0.01033346,2845.2,2845.1,25.77732613]
[1644781646785,0.01033346,2845.2,2845.1,25.95292613]
[1644781646987,0.01033346,2845.2,2845.1,26.12501742]
[1644781647188,0.00380537,2845.8,2845.1,26.12501742]
[1644781647385,0.66517228,2845.8,2845.2,21.33864]
[1644781647587,0.86396068,2846.1,2845.4,0.87865]
[1644781647588,0.04132726,2845.7,2845.4,0.87865]
[1644781647788,0.04132726,2845.7,2845.5,0.506]
[1644781648493,0.77192759,2846.3,2845.7,25.11]
[1644781648691,0.00382518,2845.9,2845.8,25.616]
[1644781648896,0.66394945,2846.6,2846.0,20.46]
[1644781649089,0.66394945,2846.6,2846.2,20.46]
[1644781649289,0.66394945,2846.6,2846.3,20.966]
[1644781649490,0.66394945,2846.6,2846.3,22.1868573]
[1644781649690,0.66394945,2846.6,2846.3,23.9435173]
[1644781649939,0.88520608,2846.9,2846.3,23.9435173]
[1644781649940,0.66394945,2846.7,2846.4,22.38873129]
[1644781650142,0.66394945,2846.8,2846.5,20.966]
[1644781650342,0.88595788,2847.2,2846.9,4.65]
[1644781650541,0.88595788,2847.2,2846.8,20.46]
[1644781650542,0.1756,2847.6,2847.0,20.966]
[1644781650740,0.1756,2847.6,2847.2,20.46]
[1644781651044,0.1756,2847.6,2847.3,3.20588468]
[1644781651239,0.1756,2847.6,2847.3,23.66588468]
[1644781651440,0.1756,2847.6,2847.3,23.83797597]
[1644781651840,0.1756,2847.6,2847.4,1.75595]
[1644781652040,7.47,2847.9,2847.5,0.506]
[1644781652242,7.47,2847.9,2847.8,0.88348736]
[1644781653342,7.47,2847.9,2847.8,1.76138736]
[1644781655192,0.01093103,2848.0,2847.8,1.76138736]
[1644781655589,0.01093103,2848.0,2847.8,2.63928736]
[1644781655790,0.1754,2848.4,2847.9,1.3839]
[1644781655992,1.2376,2848.6,2847.9,0.506]
[1644781655993,0.01093099,2848.0,2847.9,0.506]
[1644781656891,0.1754,2848.6,2847.9,0.506]
[1644781657092,0.0328402,2848.7,2848.3,1.11218382]
[1644781657338,0.04371721,2848.5,2848.3,0.35926721]
[1644781657538,0.04371721,2848.5,2848.4,0.506]
[1644781658142,0.0328402,2848.7,2848.4,0.506]
[1644781658538,0.01093049,2848.6,2848.4,0.506]
[1644781659339,0.0328402,2848.7,2847.9,1.75562]
[1644781659540,0.0328402,2848.7,2847.9,0.506]
[1644781659739,0.18640656,2848.6,2847.6,1.75585]
[1644781660640,0.1754,2848.6,2847.9,0.94822132]
[1644781660838,0.01100694,2848.2,2847.9,0.94822132]
[1644781661787,0.1754,2848.6,2847.9,0.94822132]
[1644781661986,0.00834417,2848.2,2847.9,0.94822132]
[1644781662387,0.00834417,2848.2,2847.9,1.82612132]
[1644781662588,0.16711583,2848.6,2847.9,1.82612132]
[1644781662988,0.13374417,2848.6,2847.9,0.94822132]
[1644781663590,0.00383397,2848.5,2847.9,0.94822132]
[1644781664191,0.00383397,2848.5,2847.4,0.4254]
[1644781664391,0.00383397,2848.5,2847.3,2.63409]
[1644781664392,0.00834064,2848.3,2847.3,2.63409]
[1644781664590,0.1754,2848.2,2847.3,1.75601]
[1644781665046,0.00383397,2848.1,2847.3,1.75601]
[1644781665242,0.00383397,2848.1,2847.5,0.96089255]
[1644781665642,0.18701625,2848.3,2847.5,0.96089255]
[1644781666242,0.89873718,2848.2,2847.5,0.96089255]
[1644781666447,0.00383397,2848.1,2847.5,0.96089255]
[1644781666646,1.95,2848.0,2847.3,1.1220258]
[1644781666842,3.5603315,2848.3,2847.3,1.1220258]
[1644781666843,0.00383397,2847.9,2847.3,1.1220258]
[1644781667046,0.00383397,2848.1,2847.3,1.1220258]
[1644781667247,0.87338742,2848.2,2847.3,1.1220258]
[1644781667744,3.27478412,2848.1,2847.1,0.1754]
[1644781667946,3.27478412,2848.1,2846.9,0.87821]
[1644781667947,0.87338742,2848.0,2846.9,0.87821]
[1644781668145,3.93291459,2847.9,2846.9,0.87821]
[1644781668346,0.00383397,2847.8,2846.8,0.01041774]
[1644781668986,0.88218397,2847.8,2846.8,0.93201388]
[1644781669190,0.88218397,2847.8,2846.8,0.01041773]
[1644781669191,5.0,2847.4,2846.8,0.01041773]
[1644781669391,3.35844316,2847.7,2846.8,0.01041773]
[1644781669392,5.0,2847.2,2846.8,0.01041773]
[1644781669586,5.4256,2847.2,2846.8,0.01041773]
[1644781669789,5.42943397,2847.2,2846.8,0.01041773]
[1644781669986,0.4256,2847.2,2846.8,0.01041773]
[1644781670186,0.4256,2847.2,2846.0,1.0541]
[1644781670393,0.00383397,2847.1,2846.5,1.09261785]
[1644781670689,0.1756,2847.0,2846.5,1.09261785]
[1644781671690,0.1756,2847.0,2846.6,0.00691266]
[1644781672089,5.0,2847.0,2846.6,0.00691266]
[1644781672343,5.0,2846.8,2846.6,0.00691266]
[1644781672541,0.17943397,2846.9,2845.8,0.52073125]
[1644781672742,0.00383397,2846.7,2845.8,0.52073125]
[1644781672943,0.8787,2846.7,2845.8,0.52073125]
[1644781673140,0.8787,2846.7,2845.4,1.75736]
[1644781673141,0.1756,2846.7,2846.0,1.13543526]
[1644781673540,3.50383397,2847.1,2846.1,0.17209129]
[1644781673941,3.50383397,2847.1,2846.2,0.87844]
[1644781674140,3.50383397,2847.1,2846.5,1.08703871]
[1644781674541,0.00383397,2847.1,2846.5,1.08703871]
[1644781674740,8.52404,2847.5,2846.5,1.08703871]
[1644781674741,0.86759369,2847.3,2846.5,1.08703871]
[1644781674943,0.00383397,2847.3,2846.6,0.67809129]
[1644781675141,3.864,2848.0,2846.6,0.67809129]
[1644781675142,0.01155387,2847.9,2846.6,1.55636129]
[1644781675342,0.01155387,2847.9,2846.9,6.33]
[1644781675544,0.01155387,2847.9,2847.0,0.506]
[1644781675741,0.01155387,2847.9,2847.0,0.67809129]
[1644781675943,0.01155387,2847.9,2847.6,0.93062769]
[1644781676189,0.00383397,2847.9,2847.7,0.506]
[1644781676388,0.01082387,2847.9,2847.7,0.506]
[1644781677190,0.01082387,2847.9,2847.7,1.38395]
[1644781677386,0.00383397,2848.4,2847.7,2.2619]
[1644781677586,0.80395964,2848.4,2847.8,0.87795]
[1644781677788,0.01086194,2847.9,2847.8,0.87795]
[1644781678390,0.01086194,2847.9,2847.8,1.38395]
[1644781678588,0.00383397,2848.5,2847.8,1.38395]
[1644781678787,0.01086189,2848.0,2847.8,0.506]
[1644781679835,0.00383397,2848.5,2847.8,0.506]
[1644781680036,0.01086183,2848.0,2847.8,0.506]
[1644781680239,0.04344082,2848.5,2847.8,0.506]
[1644781680437,0.80066576,2848.4,2848.1,0.95109255]
[1644781680636,0.80066576,2848.4,2847.8,0.506]
[1644781680840,0.00383433,2848.3,2847.8,0.506]
[1644781681039,0.00383433,2848.3,2847.8,2.26193]
[1644781681241,0.00383433,2848.3,2847.8,1.38396]
[1644781681440,0.80453876,2848.5,2847.8,1.38396]
[1644781682243,0.80453876,2848.5,2847.9,0.87791]
[1644781682443,0.80453876,2848.5,2847.9,1.75583]
[1644781682843,0.80453876,2848.5,2847.9,2.63373]
[1644781683042,0.80453876,2848.5,2847.9,1.75583]
[1644781683242,0.80453876,2848.5,2847.9,0.87791]
[1644781684286,0.80453876,2848.5,2847.9,1.75582]
[1644781684487,0.80453876,2848.5,2848.1,0.87779]
[1644781684688,0.80453876,2848.5,2848.2,0.506]
[1644781684689,0.80070443,2848.5,2848.2,0.506]
[1644781684894,0.03667453,2848.7,2848.3,1.07304615]
[1644781684895,0.01143744,2848.6,2848.3,1.07304615]
[1644781685087,0.01143744,2848.6,2848.4,0.506]
[1644781685790,0.0328402,2848.7,2848.4,0.506]
[1644781685988,0.01143832,2848.6,2848.4,0.51645431]
[1644781686189,0.01143832,2848.6,2848.4,1.39424431]
[1644781686590,0.01143832,2848.6,2848.3,2.62837662]
[1644781686789,0.01143832,2848.6,2848.4,0.506]
[1644781686988,0.0328402,2848.7,2848.4,0.506]
[1644781687189,0.76767634,2848.6,2848.4,1.38379]
[1644781688441,0.76767634,2848.6,2848.4,0.506]
[1644781689041,0.0328402,2848.7,2848.4,0.506]
[1644781689641,0.04427846,2848.7,2848.4,0.506]
[1644781689841,0.04427846,2848.7,2848.4,2.43528237]
[1644781690045,0.04427846,2848.7,2848.4,1.55749237]
[1644781690242,0.04427846,2848.7,2848.4,0.506]
[1644781690642,0.0328402,2848.7,2848.4,0.506]
[1644781690840,0.04427846,2848.7,2848.4,0.506]
[1644781691786,0.0328402,2848.7,2848.4,0.506]
[1644781691986,0.04427846,2848.7,2848.4,0.506]
[1644781692887,0.0328402,2848.7,2848.4,0.506]
[1644781693288,0.65728678,2848.6,2848.4,0.506]
[1644781693488,0.69012698,2848.7,2848.4,0.506]
[1644781693690,0.69012698,2848.7,2848.4,1.38381]
[1644781693889,0.0328402,2848.7,2848.5,3.66001945]
[1644781694090,0.0328402,2848.7,2848.6,0.506]
[1644781694492,0.0328402,2848.7,2848.6,0.806]
[1644781694493,0.0411582,2848.7,2848.6,0.806]
[1644781694688,0.0411582,2848.7,2848.6,8.48904]
[1644781694944,0.0411582,2848.7,2848.6,12.33665113]
[1644781695144,0.0411582,2848.7,2848.6,12.24907114]
[1644781695342,0.0328402,2848.7,2848.6,12.22715053]
[1644781696040,0.0328402,2848.7,2848.6,8.48904]
[1644781696240,0.0328402,2848.7,2848.6,7.88904]
[1644781696942,0.0328402,2848.7,2848.6,7.71364]
[1644781697141,0.03696342,2849.2,2849.1,0.87783464]
[1644781697342,0.03696342,2849.2,2849.1,1.38383464]
[1644781697747,0.0038337,2849.3,2849.1,1.38383464]
[1644781697944,0.65728678,2849.4,2849.1,1.38383464]
[1644781698443,0.65728678,2849.5,2849.1,1.38383464]
[1644781699803,0.65728678,2849.5,2849.1,2.26140464]
[1644781699999,0.65728678,2849.5,2849.1,1.38357]
[1644781700198,0.65728678,2849.5,2849.1,0.506]
[1644781700403,0.00830873,2849.4,2849.1,0.506]
[1644781700801,0.00830873,2849.4,2849.1,1.38357]
[1644781701201,0.00830873,2849.4,2849.2,0.87942072]
[1644781701402,0.0038337,2849.5,2849.2,0.87942072]
[1644781701403,0.66112048,2849.5,2849.2,1.38542072]
[1644781701603,0.0114411,2849.4,2849.2,1.38542072]
[1644781701805,0.0114411,2849.4,2849.2,2.26295072]
[1644781702442,0.0114411,2849.4,2849.2,3.14048072]
[1644781702640,0.0038337,2849.7,2849.2,3.14048072]
[1644781702840,0.01144105,2849.4,2849.2,3.14048072]
[1644781703241,0.01144105,2849.4,2849.2,1.38542072]
[1644781704141,0.01144105,2849.4,2849.2,0.506]
[1644781704943,0.0038337,2849.6,2849.2,0.506]
[1644781705143,0.66112048,2849.8,2849.2,0.506]
[1644781705343,0.01144105,2849.4,2849.3,1.08159887]
[1644781705546,0.01144105,2849.4,2849.3,1.58759887]
[1644781706191,0.66112048,2849.8,2849.3,1.58759887]
[1644781706389,0.01144099,2849.5,2849.3,1.58759887]
[1644781706591,0.01144099,2849.5,2849.3,1.00310988]
[1644781707395,0.0038337,2849.6,2849.3,1.00310988]
[1644781707592,0.66112048,2849.9,2849.4,0.506]
[1644781707893,0.0038337,2849.9,2849.4,0.506]
[1644781708096,0.0038337,2849.9,2849.4,1.27809129]
[1644781708292,0.0038337,2850.1,2849.5,0.1754]
[1644781708492,0.0038337,2850.1,2849.9,1.15738338]
[1644781708790,0.69051788,2850.2,2849.9,1.15738338]
[1644781708991,0.69735966,2850.1,2849.9,1.15738338]
[1644781709492,1.35464644,2850.1,2849.9,1.15738338]
[1644781709941,0.69735966,2850.0,2849.8,0.506]
[1644781710241,0.69735966,2849.9,2849.8,0.506]
[1644781710642,0.69735966,2850.0,2849.8,0.506]
[1644781711140,0.70880393,2850.0,2849.8,0.506]
[1644781711341,0.69735966,2849.9,2849.8,0.506]
[1644781712340,0.01144433,2850.0,2849.8,1.38332]
[1644781712549,0.69735966,2849.9,2849.8,2.26065]
[1644781713618,0.01144433,2850.0,2849.8,2.26065]
[1644781713809,1.35848014,2850.2,2849.8,2.86065]
[1644781713810,0.0038337,2850.2,2849.8,2.86065]
[1644781714010,0.0038337,2850.3,2850.1,0.87708]
[1644781714208,0.04577045,2850.4,2850.2,0.506]
[1644781714408,0.04577045,2850.4,2850.2,1.6515397]
[1644781714608,0.0038337,2850.6,2850.2,1.6515397]
[1644781715813,0.0038337,2850.6,2850.2,2.5286397]
[1644781716011,0.0038337,2850.6,2850.3,0.87714]
[1644781716212,7.47,2850.7,2850.4,0.506]
[1644781716409,0.0038337,2850.6,2850.4,0.506]
[1644781716609,7.47,2850.7,2850.4,0.506]
[1644781717210,7.4782974,2850.7,2850.4,0.506]
[1644781717641,7.4782974,2850.7,2850.4,2.26009]
[1644781717843,0.0082974,2850.7,2850.5,0.87706]
[1644781718042,0.0082974,2850.7,2850.6,0.506]
[1644781718241,0.03701834,2851.1,2850.6,0.506]
[1644781718242,0.0038337,2851.4,2850.6,7.136]
[1644781718447,0.0038337,2851.2,2850.7,0.87693]
[1644781718742,0.04573625,2851.2,2850.8,0.506]
[1644781718941,0.04573625,2851.2,2851.1,0.83730618]
[1644781719143,0.04573625,2851.2,2851.1,2.22027618]
[1644781719640,0.0038337,2851.4,2851.1,2.22027618]
[1644781719842,0.01143517,2851.3,2851.1,2.22027618]
[1644781720244,0.8765,2851.5,2851.1,2.22027618]
[1644781720245,0.04573382,2851.7,2851.3,4.65]
[1644781720446,0.877,2852.2,2851.5,4.65]
[1644781720645,2.3879,2852.7,2851.6,0.506]
[1644781720646,0.00385283,2851.7,2851.6,0.506]
[1644781720844,0.00385283,2852.1,2851.6,0.506]
[1644781721118,0.00385283,2852.3,2851.7,4.65]
[1644781721308,0.00385283,2852.3,2851.8,1.42302152]
[1644781721505,0.00385283,2852.3,2851.8,2.29964152]
[1644781721708,7.6453,2852.9,2852.0,8.59099628]
[1644781721906,0.1753,2852.9,2852.2,6.33]
[1644781722107,7.47,2853.4,2852.1,0.17209129]
[1644781722307,7.47,2853.4,2852.4,6.33]
[1644781722507,7.47,2853.4,2853.3,1.17386621]
[1644781722706,7.47,2853.4,2853.3,1.67986621]
[1644781722707,7.42,2853.4,2853.3,1.67986621]
[1644781723508,0.1751,2853.8,2853.3,3.43224621]
[1644781723709,0.1751,2854.1,2853.3,3.43224621]
[1644781723905,0.04035807,2853.7,2853.3,3.43224621]
[1644781724306,0.04035807,2853.7,2853.3,7.53160518]
[1644781724507,0.04035807,2853.7,2853.4,0.87604]
[1644781724704,0.04035807,2853.7,2853.5,0.506]
[1644781726743,0.04035807,2853.7,2852.4,0.6811]
[1644781726944,1.59198543,2852.6,2852.5,0.01079489]
[1644781727545,1.59198543,2852.6,2852.5,0.95928686]
[1644781727843,1.59198543,2852.6,2852.5,1.82493197]
[1644781728893,1.59198543,2852.6,2852.5,0.94849197]
[1644781729689,1.59198543,2852.6,2852.5,1.82497197]
[1644781730091,1.59198543,2852.6,2852.4,0.01079508]
[1644781730291,1.59198543,2852.6,2852.3,0.1751]
[1644781730492,1.59198543,2852.6,2852.4,0.01079508]
[1644781731498,1.59198543,2852.6,2852.3,0.1751]
[1644781731692,1.59198543,2852.6,2852.4,0.01079527]
[1644781731895,0.1751,2853.1,2852.5,4.65]
[1644781732098,0.1751,2853.1,2852.6,0.506]
[1644781732371,0.1751,2853.1,2852.6,0.85319129]
[1644781732571,0.04579959,2853.5,2852.7,4.82209129]
[1644781732773,0.04035807,2853.7,2852.8,0.6811]
[1644781732966,0.04035807,2853.7,2852.8,1.55731]
[1644781733168,0.04035807,2853.7,2853.6,0.90507681]
[1644781736703,0.04035807,2853.7,2853.6,3.16325681]
[1644781738295,0.04035807,2853.7,2853.6,1.41107681]
[1644781739949,0.17896525,2854.3,2853.7,4.65]
[1644781740150,0.17896525,2854.3,2853.8,1.38208]
[1644781740151,0.04586378,2854.2,2853.8,1.38208]
[1644781740749,0.04586378,2854.2,2853.8,2.15417129]
[1644781740948,0.17896525,2854.3,2854.0,1.09539811]
[1644781741154,0.00387677,2854.2,2854.1,5.156]
[1644781741350,0.04973895,2854.6,2854.1,5.50319129]
[1644781741745,0.04973895,2854.6,2854.1,0.85319129]
[1644781741949,0.04973895,2854.6,2854.2,1.75134]
[1644781742152,0.04973895,2854.6,2854.4,0.87578]
[1644781742449,0.00387677,2855.3,2854.6,4.65]
[1644781742647,0.00387677,2855.3,2854.7,0.506]
[1644781742849,0.1751,2855.7,2854.7,6.836]
[1644781742850,0.00387677,2855.5,2854.7,6.836]
[1644781743053,0.00387677,2855.6,2854.8,1.9262]
[1644781743246,0.00387677,2855.7,2855.1,6.33]
[1644781743447,3.9698,2856.1,2855.2,0.6811]
[1644781743448,0.00387677,2855.8,2855.2,0.6811]
[1644781743702,0.00387677,2856.0,2855.2,2.16983016]
[1644781743901,0.00387677,2856.1,2855.2,2.46983016]
[1644781744104,0.2085411,2856.6,2855.7,6.33]
[1644781744105,0.0336411,2856.6,2855.7,6.33]
[1644781744298,0.0336411,2856.6,2856.1,6.33]
[1644781744504,0.0336411,2856.6,2856.2,7.71106]
[1644781744697,0.0336411,2856.6,2856.3,0.506]
[1644781745000,0.0336411,2856.6,2855.8,0.13819997]
[1644781745200,0.2836411,2856.6,2855.8,0.13819997]